bitfinex/quotes_BTCUSD_20241117
["timestamp","ask_amount","ask_price","bid_price","bid_amount"]
[1731809115742,0.10906255,89966.0,89955.0,0.16681495]
[1731809116012,0.11116,89961.0,89955.0,0.16781495]
[1731809116249,0.11408797,89965.0,89955.0,0.16781495]
[1731809116522,0.00502532,89960.0,89955.0,0.16781495]
[1731809116742,0.1161804,89964.0,89955.0,0.16781495]
[1731809116954,0.0050253,89959.0,89956.0,0.111164]
[1731809117170,0.0017138,89966.0,89965.0,0.111154]
[1731809117884,0.0017138,89966.0,89946.0,0.17181495]
[1731809117885,0.111177,89947.0,89939.0,0.16681495]
[1731809118095,0.001,89960.0,89939.0,0.16681495]
[1731809118096,0.11116,89960.0,89959.0,0.16681495]
[1731809118349,0.10906255,89960.0,89950.0,0.111172]
[1731809118569,0.10906255,89960.0,89939.0,0.16681495]
[1731809118570,0.10906255,89959.0,89949.0,0.16681495]
[1731809119227,0.111165,89957.0,89949.0,0.16681495]
[1731809119465,0.0017138,89966.0,89949.0,0.16681495]
[1731809119711,0.0017138,89966.0,89950.0,0.111172]
[1731809119974,0.29,89983.0,89950.0,0.111172]
[1731809119975,0.09152875,89982.0,89957.0,0.005]
[1731809120181,0.014,89966.0,89965.0,0.111153]
[1731809120393,0.111135,89980.0,89968.0,0.11115]
[1731809120608,0.012,89960.0,89959.0,0.111161]
[1731809121039,0.111137,89979.0,89967.0,0.111151]
[1731809121253,0.10906255,89978.0,89967.0,0.111151]
[1731809121465,0.10906255,89978.0,89968.0,0.11115]
[1731809121681,0.10906255,89978.0,89965.0,0.002]
[1731809121882,0.222249,89989.0,89972.0,0.111145]
[1731809122100,0.10906255,89988.0,89960.0,0.16681495]
[1731809122372,0.002,89982.0,89971.0,0.16681495]
[1731809122583,0.002,89982.0,89959.0,0.002]
[1731809122584,0.002,89973.0,89964.0,0.16681495]
[1731809122818,0.10906255,89981.0,89964.0,0.16681495]
[1731809122819,0.002,89965.0,89964.0,0.16681495]
[1731809123028,0.113154,89965.0,89964.0,0.16681495]
[1731809123279,0.113154,89965.0,89959.0,0.002]
[1731809123280,0.11116,89961.0,89959.0,0.002]
[1731809123481,0.222313,89964.0,89949.0,0.16681495]
[1731809123482,0.10906255,89964.0,89949.0,0.16681495]
[1731809123718,0.10906255,89963.0,89958.0,0.16681495]
[1731809123931,0.10906255,89963.0,89949.0,0.16681495]
[1731809124154,0.111161,89960.0,89949.0,0.16681495]
[1731809124391,0.111161,89960.0,89940.0,0.22237]
[1731809124392,0.111167,89955.0,89940.0,0.22237]
[1731809124709,0.10906255,89954.0,89934.0,0.303184]
[1731809124996,0.10906255,89954.0,89921.0,0.21431495]
[1731809124997,0.10906255,89954.0,89924.0,0.222409]
[1731809125196,0.111196,89931.0,89921.0,0.16681495]
[1731809125420,0.22025855,89931.0,89921.0,0.16681495]
[1731809125825,0.111203,89925.0,89921.0,0.16681495]
[1731809126039,0.111206,89923.0,89921.0,0.16681495]
[1731809126304,0.22026855,89923.0,89921.0,0.16681495]
[1731809126520,0.22026855,89923.0,89912.0,0.16681495]
[1731809126736,0.22238,89936.0,89912.0,0.16681495]
[1731809126737,0.002,89941.0,89922.0,0.16767185]
[1731809126956,0.222372,89939.0,89922.0,0.0008569]
[1731809127189,0.111191,89935.0,89924.0,0.111203]
[1731809127424,0.10906255,89934.0,89922.0,0.0008569]
[1731809127897,0.111195,89932.0,89922.0,0.1120629]
[1731809128327,0.014,89941.0,89922.0,0.0008569]
[1731809128621,0.014,89941.0,89940.0,0.111185]
[1731809128867,0.111195,89933.0,89923.0,0.111205]
[1731809129103,0.009,89934.0,89929.0,0.16681495]
[1731809129329,0.009,89934.0,89922.0,0.0008569]
[1731809129330,0.10906255,89933.0,89922.0,0.0008569]
[1731809129571,0.10906255,89933.0,89925.0,0.16681495]
[1731809129572,0.22025655,89933.0,89925.0,0.16681495]
[1731809129773,0.111196,89931.0,89925.0,0.16681495]
[1731809129987,0.22025855,89931.0,89925.0,0.16681495]
[1731809130280,0.10906255,89931.0,89925.0,0.16681495]
[1731809130751,0.014,89933.0,89928.0,0.2224]
[1731809131001,0.014,89933.0,89932.0,0.111195]
[1731809131248,0.16681495,89957.0,89926.0,0.17181495]
[1731809131249,0.091168,89954.0,89945.0,0.111178]
[1731809131459,0.16681495,89957.0,89926.0,0.17181495]
[1731809131460,0.16681495,89947.0,89927.0,0.222402]
[1731809131683,0.11106255,89953.0,89926.0,0.005]
[1731809131684,0.11106255,89953.0,89938.0,0.111186]
[1731809131899,0.22234,89952.0,89936.0,0.27800395]
[1731809132151,0.22234,89952.0,89930.0,0.222395]
[1731809132152,0.111177,89947.0,89937.0,0.111188]
[1731809132384,0.10906255,89951.0,89938.0,0.16681495]
[1731809132594,0.10906255,89951.0,89934.0,0.111192]
[1731809132595,0.111181,89944.0,89934.0,0.111192]
[1731809132812,0.111182,89943.0,89936.0,0.16681495]
[1731809133268,0.11106255,89943.0,89927.0,0.16681495]
[1731809133488,0.11106255,89943.0,89928.0,0.111198]
[1731809133489,0.10906255,89943.0,89928.0,0.111198]
[1731809133712,0.222322,89960.0,89921.0,0.16681495]
[1731809133713,0.10906255,89942.0,89921.0,0.16681495]
[1731809134240,0.111196,89932.0,89923.0,0.111205]
[1731809134490,0.002,89940.0,89921.0,0.16681495]
[1731809134690,0.111183,89942.0,89933.0,0.111193]
[1731809134901,0.014,89943.0,89940.0,0.111184]
[1731809135108,0.014,89943.0,89921.0,0.16681495]
[1731809135109,0.10906255,89943.0,89937.0,0.111188]
[1731809135330,0.10906255,89943.0,89921.0,0.16681495]
[1731809135331,0.011,89942.0,89935.0,0.11119]
[1731809135552,0.011,89942.0,89921.0,0.16681495]
[1731809135553,0.011,89942.0,89940.0,0.16681495]
[1731809135765,0.11117,89952.0,89943.0,0.111181]
[1731809135981,0.222316,89962.0,89936.0,0.22238]
[1731809135982,0.014,89943.0,89936.0,0.22238]
[1731809136228,0.014,89943.0,89942.0,0.111182]
[1731809136437,0.014,89943.0,89942.0,0.11340564]
[1731809136659,0.014,89943.0,89942.0,0.22024455]
[1731809137555,0.16681495,89962.0,89957.0,0.111163]
[1731809138034,0.111153,89966.0,89958.0,0.111162]
[1731809138455,0.11115,89968.0,89945.0,0.16681495]
[1731809138677,0.111139,89977.0,89961.0,0.111158]
[1731809138891,0.111139,89977.0,89961.0,0.111159]
[1731809138892,0.111148,89970.0,89961.0,0.111159]
[1731809139127,0.10906255,89976.0,89955.0,0.38914595]
[1731809139128,0.11106255,89976.0,89955.0,0.16681495]
[1731809139392,0.11106255,89976.0,89956.0,0.22233]
[1731809139393,0.014,89966.0,89956.0,0.22233]
[1731809139607,0.10906255,89965.0,89945.0,0.16781495]
[1731809139813,0.111166,89955.0,89954.0,0.16681495]
[1731809140073,0.10906255,89965.0,89957.0,0.0008562]
[1731809140074,0.136162,89958.0,89957.0,0.0008562]
[1731809140545,0.14138626,89958.0,89957.0,0.0008562]
[1731809140968,0.25044881,89958.0,89957.0,0.0008562]
[1731809141406,0.2707658,89958.0,89957.0,0.0008562]
[1731809142282,0.2847658,89958.0,89957.0,0.0008562]
[1731809142501,0.7611658,89958.0,89957.0,0.0008562]
[1731809142987,0.6607658,89958.0,89957.0,0.0008562]
[1731809143171,0.6747658,89958.0,89957.0,0.0008562]
[1731809143441,0.5517658,89958.0,89957.0,0.0008562]
[1731809143654,0.5497658,89958.0,89957.0,0.0008562]
[1731809143885,0.5637658,89958.0,89957.0,0.0008562]
[1731809144134,0.54981331,89958.0,89957.0,0.0008562]
[1731809144351,0.52944881,89958.0,89957.0,0.0008562]
[1731809144556,0.5498136,89958.0,89957.0,0.0008562]
[1731809144767,0.22544881,89958.0,89957.0,0.0008562]
[1731809145249,0.111182,89943.0,89940.0,0.16780515]
[1731809145771,0.222332,89956.0,89940.0,0.16780515]
[1731809145772,0.222335,89954.0,89950.0,0.16681495]
[1731809145776,0.111183,89941.0,89940.0,0.16681495]
[1731809146253,0.111183,89941.0,89931.0,0.16681495]
[1731809146254,0.00518162,89941.0,89931.0,0.16681495]
[1731809146492,0.111202,89926.0,89925.0,0.0009811]
[1731809146944,0.111202,89926.0,89921.0,0.16681495]
[1731809146945,0.00517154,89926.0,89921.0,0.16681495]
[1731809147175,0.111198,89930.0,89921.0,0.16681495]
[1731809147397,0.10906255,89929.0,89916.0,0.222429]
[1731809147613,0.11423371,89929.0,89916.0,0.222429]
[1731809147793,0.111204,89925.0,89915.0,0.111215]
[1731809148241,0.00517107,89924.0,89912.0,0.16681495]
[1731809148471,0.00517107,89924.0,89912.0,0.27803295]
[1731809148684,0.00517107,89924.0,89903.0,0.38927595]
[1731809148685,0.22026855,89923.0,89913.0,0.16681495]
[1731809148941,0.111217,89914.0,89913.0,0.16365872]
[1731809149175,0.222435,89914.0,89908.0,0.0009946]
[1731809149404,0.222435,89914.0,89903.0,0.16681495]
[1731809149405,0.00512241,89914.0,89906.0,0.111226]
[1731809149659,0.111219,89913.0,89903.0,0.16681495]
[1731809149870,0.01017908,89920.0,89903.0,0.16681495]
[1731809150084,0.00512237,89912.0,89904.0,0.222459]
[1731809150348,0.00512237,89912.0,89903.0,0.16681495]
[1731809150576,0.236411,89924.0,89904.0,0.222458]
[1731809150577,0.00493968,89911.0,89904.0,0.222458]
[1731809150818,0.111222,89910.0,89897.0,0.1]
[1731809151030,0.111221,89911.0,89903.0,0.11123]
[1731809151245,0.111221,89911.0,89908.0,0.001]
[1731809151457,0.00493966,89910.0,89908.0,0.001]
[1731809151675,0.10906255,89909.0,89896.0,0.0009998]
[1731809151940,0.10906255,89909.0,89897.0,0.16681495]
[1731809152164,0.11123,89904.0,89897.0,0.16781495]
[1731809152368,0.10906255,89904.0,89897.0,0.001]
[1731809152571,0.10906255,89904.0,89894.0,0.07567977]
[1731809152572,0.111234,89901.0,89894.0,0.07567977]
[1731809152777,0.00493569,89903.0,89895.0,0.16681495]
[1731809153008,0.00493564,89900.0,89896.0,0.112239]
[1731809153269,0.22029255,89904.0,89896.0,0.112238]
[1731809153509,0.00493562,89899.0,89896.0,0.001]
[1731809153727,0.02136272,89909.0,89896.0,0.001]
[1731809153728,0.10906255,89898.0,89896.0,0.001]
[1731809153929,0.111238,89897.0,89896.0,0.001]
[1731809154140,0.22030055,89897.0,89896.0,0.001]
[1731809154355,0.111239,89896.0,89895.0,0.001]
[1731809154571,0.22030155,89896.0,89895.0,0.001]
[1731809154752,0.22519086,89896.0,89895.0,0.001]
[1731809155040,0.22719086,89896.0,89895.0,0.001]
[1731809155245,0.22719086,89896.0,89875.0,0.0135456]
[1731809155246,0.639264,89876.0,89875.0,0.0135456]
[1731809155455,0.613264,89876.0,89875.0,0.0135456]
[1731809155672,0.11630449,89876.0,89875.0,0.0135456]
[1731809156092,0.13862126,89876.0,89875.0,0.0135456]
[1731809156333,0.13862126,89876.0,89868.0,1.69226411]
[1731809156334,0.716273,89869.0,89868.0,1.69226411]
[1731809156578,0.113273,89869.0,89868.0,1.69226411]
[1731809156781,0.111273,89869.0,89868.0,1.69226411]
[1731809157267,0.10906255,89869.0,89868.0,1.69226411]
[1731809157500,0.02029372,89881.0,89868.0,1.69226411]
[1731809157501,0.222516,89881.0,89868.0,1.69226411]
[1731809157719,0.005,89892.0,89868.0,1.76936411]
[1731809157720,0.222489,89892.0,89868.0,1.76936411]
[1731809157947,0.16681495,89884.0,89879.0,0.11126]
[1731809158157,0.10906255,89891.0,89872.0,0.222536]
[1731809158356,0.028,89876.0,89869.0,0.16681495]
[1731809158665,0.014,89876.0,89869.0,0.16681495]
[1731809158865,0.10906255,89891.0,89869.0,0.16681495]
[1731809159088,0.10906255,89891.0,89868.0,1.76936411]
[1731809159089,0.18081495,89884.0,89883.0,0.111255]
[1731809159300,0.18081495,89884.0,89868.0,1.76936411]
[1731809159549,0.014,89884.0,89880.0,0.111258]
[1731809159746,0.014,89884.0,89879.0,0.11126]
[1731809160203,0.014,89884.0,89877.0,0.222525]
[1731809160413,0.10906255,89883.0,89870.0,0.16681495]
[1731809160625,0.10906255,89890.0,89886.0,0.111251]
[1731809161045,0.014,89891.0,89889.0,0.111248]
[1731809161081,0.014,89891.0,89875.0,0.0477]
[1731809161082,0.014,89891.0,89886.0,0.11125]
[1731809161319,0.111241,89895.0,89875.0,0.0477]
[1731809161551,0.10906255,89894.0,89883.0,0.38932395]
[1731809161772,0.10906255,89894.0,89880.0,0.003]
[1731809161981,0.10906255,89894.0,89893.0,0.111243]
[1731809162475,0.005,89913.0,89876.0,0.222528]
[1731809162476,0.111228,89905.0,89897.0,0.111237]
[1731809162687,0.16681495,89901.0,89875.0,0.0477]
[1731809162907,0.16681495,89901.0,89894.0,0.111241]
[1731809162908,0.10906255,89900.0,89894.0,0.111241]
[1731809163127,0.2758775,89900.0,89882.0,0.556282]
[1731809163339,0.2758775,89900.0,89881.0,0.16681495]
[1731809163340,0.014,89894.0,89881.0,0.16681495]
[1731809163584,0.014,89894.0,89883.0,0.222511]
[1731809163801,0.014,89894.0,89881.0,0.16681495]
[1731809164023,0.028,89894.0,89893.0,0.111243]
[1731809164257,0.028,89894.0,89872.0,0.005]
[1731809164258,0.13706255,89894.0,89874.0,0.222531]
[1731809164471,0.13706255,89894.0,89872.0,0.005]
[1731809164472,0.111245,89892.0,89882.0,0.16681495]
[1731809164743,0.10906255,89891.0,89872.0,0.1]
[1731809164962,0.10906255,89891.0,89873.0,0.222534]
[1731809165199,0.111249,89889.0,89879.0,0.11126]
[1731809165413,0.10906255,89889.0,89885.0,0.111252]
[1731809165627,0.028,89894.0,89880.0,0.16681495]
[1731809165842,0.028,89894.0,89874.0,0.1]
[1731809165843,0.16681495,89891.0,89876.0,0.222528]
[1731809166139,0.014,89894.0,89872.0,0.1]
[1731809166361,0.014,89894.0,89880.0,0.16681495]
[1731809166583,0.014,89894.0,89875.0,0.0485554]
[1731809166584,0.16681495,89901.0,89891.0,0.111245]
[1731809166789,0.22029755,89900.0,89891.0,0.111245]
[1731809167272,0.10906255,89900.0,89891.0,0.111244]
[1731809167508,0.10906255,89900.0,89882.0,0.16681495]
[1731809167509,0.10906255,89900.0,89892.0,0.111244]
[1731809167746,0.014,89901.0,89893.0,0.16681495]
[1731809167959,0.014,89901.0,89882.0,0.16681495]
[1731809167960,0.014,89901.0,89883.0,0.222511]
[1731809167961,0.014,89891.0,89883.0,0.222511]
[1731809168195,0.014,89891.0,89890.0,0.111247]
[1731809168410,0.014,89891.0,89882.0,0.16681495]
[1731809168411,0.10906255,89905.0,89882.0,0.16681495]
[1731809168688,0.014,89900.0,89882.0,0.16681495]
[1731809168898,0.10906255,89905.0,89882.0,0.16681495]
[1731809169150,0.16681495,89910.0,89882.0,0.16681495]
[1731809169385,0.10906255,89909.0,89882.0,0.16681495]
[1731809169617,0.10906255,89909.0,89901.0,0.111232]
[1731809169842,0.10906255,89909.0,89903.0,0.11123]
[1731809170088,0.10906255,89909.0,89905.0,0.111228]
[1731809170332,0.10906255,89909.0,89893.0,0.16681495]
[1731809170554,0.10906255,89909.0,89901.0,0.111233]
[1731809170753,0.10906255,89909.0,89904.0,0.111229]
[1731809170754,0.12306255,89909.0,89904.0,0.111229]
[1731809170983,0.12306255,89909.0,89899.0,0.222471]
[1731809171343,0.12306255,89909.0,89894.0,0.222481]
[1731809171344,0.002,89888.0,89882.0,0.16681495]
[1731809171568,0.002,89888.0,89875.0,0.0485554]
[1731809171569,0.211264,89876.0,89875.0,0.0008554]
[1731809171832,0.234264,89876.0,89875.0,0.0008554]
[1731809172048,0.15965947,89876.0,89875.0,0.0008554]
[1731809172285,0.02031345,89876.0,89875.0,0.0008554]
[1731809172727,0.02031345,89876.0,89875.0,0.1121204]
[1731809172954,0.03431345,89876.0,89875.0,0.0008554]
[1731809173619,0.06681498,89876.0,89875.0,0.0008554]
[1731809173879,0.06681498,89876.0,89875.0,0.1121204]
[1731809174113,0.02031345,89876.0,89875.0,0.1121204]
[1731809174329,0.03431345,89876.0,89875.0,0.1121204]
[1731809174551,0.04831345,89876.0,89875.0,0.1121204]
[1731809174781,0.03431345,89876.0,89875.0,0.1121204]
[1731809175005,0.04799172,89876.0,89875.0,0.1121204]
[1731809175217,0.03399172,89876.0,89875.0,0.1121204]
[1731809175650,0.014,89876.0,89875.0,0.1161204]
[1731809175872,0.16681495,89888.0,89876.0,0.222528]
[1731809175873,0.03257099,89886.0,89876.0,0.222528]
[1731809176087,0.16681495,89888.0,89876.0,0.222528]
[1731809176285,0.16681495,89888.0,89875.0,0.0048554]
[1731809176286,0.03257088,89887.0,89877.0,0.222526]
[1731809176590,0.03257088,89887.0,89875.0,0.0048554]
[1731809176591,0.125264,89876.0,89875.0,0.0048554]
[1731809177005,0.03257088,89876.0,89875.0,0.0048554]
[1731809177241,0.03257088,89876.0,89875.0,0.0046936]
[1731809177242,0.14163343,89876.0,89875.0,0.0046936]
[1731809177483,0.25489743,89876.0,89875.0,0.0006936]
[1731809177698,0.111273,89869.0,89868.0,1.69226411]
[1731809177917,0.26681338,89869.0,89868.0,1.69226411]
[1731809178134,0.22233555,89869.0,89868.0,1.69226411]
[1731809178354,0.30837961,89869.0,89868.0,1.69226411]
[1731809178577,0.91585137,89869.0,89868.0,1.13588358]
[1731809178813,0.90678882,89869.0,89868.0,1.13588358]
[1731809179521,1.1088805,89869.0,89868.0,1.13688358]
[1731809179764,1.21794305,89869.0,89868.0,1.13688358]
[1731809179986,1.23194305,89869.0,89868.0,1.13688358]
[1731809180225,1.26451449,89869.0,89868.0,1.13688358]
[1731809180479,0.63143542,89869.0,89868.0,1.13688358]
[1731809180696,0.60635504,89869.0,89868.0,1.13588358]
[1731809180946,0.60179166,89869.0,89868.0,1.13588358]
[1731809181157,0.52035504,89869.0,89868.0,1.13588358]
[1731809181394,0.52231883,89869.0,89868.0,1.13588358]
[1731809181636,0.28984888,89869.0,89868.0,1.13588358]
[1731809181848,0.26889472,89869.0,89868.0,1.13588358]
[1731809182062,0.28089472,89869.0,89868.0,1.13588358]
[1731809182270,0.27384888,89869.0,89868.0,1.13588358]
[1731809182488,0.26889472,89869.0,89868.0,1.13588358]
[1731809182707,0.28089472,89869.0,89868.0,1.13588358]
[1731809182927,0.28984888,89869.0,89868.0,1.13588358]
[1731809183602,0.28289472,89869.0,89868.0,1.13588358]
[1731809184097,0.31284888,89869.0,89868.0,1.13588358]
[1731809184524,0.31283339,89869.0,89868.0,1.13588358]
[1731809184777,0.28087853,89869.0,89868.0,1.13588358]
[1731809185443,0.24833555,89869.0,89868.0,1.13588358]
[1731809185950,0.27133555,89869.0,89868.0,1.13588358]
[1731809186165,0.51044717,89869.0,89868.0,1.13588358]
[1731809186419,1.21781045,89869.0,89868.0,0.94398134]
[1731809186680,1.21781045,89869.0,89835.0,0.0008553]
[1731809186681,0.611313,89836.0,89835.0,0.0008553]
[1731809186893,0.134313,89836.0,89835.0,0.0008553]
[1731809187111,0.18913893,89836.0,89835.0,0.0008553]
[1731809187316,0.66613893,89836.0,89835.0,0.0008553]
[1731809187534,0.13362348,89836.0,89835.0,0.0008553]
[1731809187740,0.65662348,89836.0,89835.0,0.0008553]
[1731809188217,0.16188848,89836.0,89835.0,0.0008553]
[1731809188432,0.03431048,89836.0,89835.0,0.0008553]
[1731809188671,0.12937303,89836.0,89835.0,0.0008553]
[1731809188885,0.25468603,89836.0,89835.0,0.0008553]
[1731809189120,0.29868603,89836.0,89835.0,0.0008553]
[1731809189333,0.29368603,89836.0,89835.0,0.0008553]
[1731809189551,0.25668603,89836.0,89835.0,0.0008553]
[1731809189943,0.27068603,89836.0,89835.0,0.0008553]
[1731809190420,0.14337303,89836.0,89835.0,0.0008553]
[1731809190626,0.12937303,89836.0,89835.0,0.0008553]
[1731809190845,0.12937303,89836.0,89835.0,0.1121703]
[1731809190846,0.14337303,89836.0,89835.0,0.1121703]
[1731809191053,0.15737303,89836.0,89835.0,0.1121703]
[1731809191266,0.14337303,89836.0,89835.0,0.0008553]
[1731809191533,0.15737303,89836.0,89835.0,0.0008553]
[1731809191776,0.14337303,89836.0,89835.0,0.1121703]
[1731809192022,0.14337303,89836.0,89835.0,0.0008553]
[1731809192231,0.27068603,89836.0,89835.0,0.0008553]
[1731809192455,0.45668603,89836.0,89835.0,0.0008553]
[1731809192672,0.44268603,89836.0,89835.0,0.0008553]
[1731809193138,0.32937303,89836.0,89835.0,0.0008553]
[1731809193361,0.22031048,89836.0,89835.0,0.0008553]
[1731809193570,0.03431048,89836.0,89835.0,0.1121703]
[1731809193803,0.03431048,89836.0,89835.0,0.0008553]
[1731809194030,0.02031048,89836.0,89835.0,0.0008553]
[1731809194267,0.03431048,89836.0,89835.0,0.0008553]
[1731809194489,0.24831048,89836.0,89835.0,0.0008553]
[1731809194723,0.23431048,89836.0,89835.0,0.0008553]
[1731809194916,0.24831048,89836.0,89835.0,0.0008553]
[1731809195156,0.17131048,89836.0,89835.0,0.0008553]
[1731809195381,0.15731048,89836.0,89835.0,0.0008553]
[1731809195629,0.17131048,89836.0,89835.0,0.0008553]
[1731809196062,0.18531048,89836.0,89835.0,0.0008553]
[1731809196305,0.40568603,89836.0,89835.0,0.0008553]
[1731809196578,0.23437555,89836.0,89835.0,0.0008553]
[1731809196790,0.24837555,89836.0,89835.0,0.0008553]
[1731809196999,0.24837555,89836.0,89835.0,0.00065491]
[1731809197216,0.25037555,89836.0,89835.0,0.00065491]
[1731809197425,0.111334,89820.0,89818.0,0.16849367]
[1731809197639,0.22039755,89819.0,89818.0,0.16849367]
[1731809197900,0.22039755,89819.0,89818.0,0.00167872]
[1731809197901,0.51139755,89819.0,89818.0,0.00167872]
[1731809198137,0.74363755,89819.0,89818.0,0.00167872]
[1731809198342,0.74363755,89819.0,89809.0,0.01005]
[1731809198343,0.5,89810.0,89809.0,0.01005]
[1731809198572,0.72240855,89810.0,89809.0,0.01005]
[1731809199026,0.72240855,89810.0,89801.0,0.16681495]
[1731809199027,0.113353,89804.0,89801.0,0.16681495]
[1731809199302,0.11106255,89804.0,89800.0,0.161]
[1731809199520,0.22241555,89804.0,89800.0,0.161]
[1731809199732,0.254931,89804.0,89800.0,0.161]
[1731809200217,0.29235218,89804.0,89800.0,0.161]
[1731809200495,0.29235218,89804.0,89781.0,0.0025]
[1731809200496,0.31772547,89782.0,89781.0,0.0025]
[1731809200722,1.54616379,89782.0,89781.0,0.0025]
[1731809200972,0.67181832,89782.0,89781.0,0.0025]
[1731809201193,0.33743832,89782.0,89781.0,0.0025]
[1731809201437,0.04643832,89782.0,89781.0,0.113882]
[1731809201667,0.06043832,89782.0,89781.0,0.113882]
[1731809201882,0.06043832,89782.0,89781.0,0.19120947]
[1731809202091,0.16681495,89801.0,89785.0,0.222754]
[1731809202310,0.16681495,89801.0,89784.0,0.232756]
[1731809202311,0.16681495,89801.0,89800.0,0.111358]
[1731809202774,0.222665,89821.0,89781.0,0.18666255]
[1731809202775,0.222638,89832.0,89792.0,0.222736]
[1731809203078,0.09705106,89842.0,89792.0,0.222736]
[1731809203079,0.014,89804.0,89803.0,0.112354]
[1731809203247,0.014,89804.0,89803.0,0.189054]
[1731809203477,0.291,89835.0,89804.0,0.222707]
[1731809203691,0.16681495,89827.0,89819.0,0.19434547]
[1731809203925,0.16681495,89827.0,89826.0,0.111326]
[1731809204354,0.222601,89847.0,89826.0,0.07510055]
[1731809204355,0.111314,89836.0,89826.0,0.07510055]
[1731809204614,0.002,89815.0,89814.0,0.111341]
[1731809204869,0.10906255,89815.0,89814.0,0.0156341]
[1731809205105,0.10906255,89815.0,89784.0,0.17181495]
[1731809205106,0.11106255,89815.0,89808.0,0.16681495]
[1731809205319,0.10906255,89814.0,89808.0,0.01668149]
[1731809205534,0.10906255,89814.0,89785.0,0.19434547]
[1731809205535,0.10906255,89814.0,89794.0,0.16681495]
[1731809205786,0.10906255,89814.0,89803.0,0.011]
[1731809205787,0.001,89804.0,89803.0,0.011]
[1731809205995,0.23763075,89804.0,89803.0,0.011]
[1731809206205,0.002,89785.0,89775.0,0.19434547]
[1731809206415,0.002,89785.0,89772.0,0.222784]
[1731809206416,0.0162152,89785.0,89784.0,0.27895201]
[1731809206641,0.0162152,89785.0,89784.0,0.22351506]
[1731809207130,0.03649408,89785.0,89784.0,0.22351506]
[1731809207353,0.03649408,89785.0,89784.0,0.156378]
[1731809207562,0.03649408,89785.0,89784.0,0.045]
[1731809207773,0.06895,89785.0,89784.0,0.045]
[1731809207990,0.27818095,89794.0,89784.0,0.045]
[1731809207991,0.16681495,89794.0,89784.0,0.045]
[1731809208209,0.01622762,89785.0,89784.0,0.045]
[1731809208416,0.12934708,89793.0,89784.0,0.045]
[1731809208645,0.01623113,89785.0,89784.0,0.045]
[1731809208886,0.03751566,89785.0,89784.0,0.056]
[1731809209095,0.03751566,89785.0,89784.0,0.24670729]
[1731809209328,0.03651566,89785.0,89784.0,0.23570729]
[1731809209588,0.05051566,89785.0,89784.0,0.23570729]
[1731809209836,0.05051566,89785.0,89784.0,0.23670729]
[1731809210088,0.00597255,89792.0,89784.0,0.12532929]
[1731809210339,0.014,89793.0,89784.0,0.045]
[1731809210340,0.13312329,89791.0,89784.0,0.045]
[1731809210581,0.001,89785.0,89784.0,0.056]
[1731809210832,0.02506074,89785.0,89784.0,0.10538299]
[1731809211057,0.03906074,89785.0,89784.0,0.10538299]
[1731809211299,0.02506074,89785.0,89784.0,0.10538299]
[1731809212265,0.05650739,89785.0,89784.0,0.09438299]
[1731809212997,0.05650739,89785.0,89784.0,0.04938299]
[1731809213247,0.27694694,89785.0,89784.0,0.04938299]
[1731809213476,0.17856994,89785.0,89784.0,0.02432478]
[1731809213708,0.29194694,89785.0,89784.0,0.02532478]
[1731809213947,0.27694694,89785.0,89784.0,0.02432478]
[1731809214184,0.17956994,89785.0,89784.0,0.02432478]
[1731809214434,0.17956994,89785.0,89784.0,0.02532478]
[1731809214435,0.18157874,89785.0,89784.0,0.02532478]
[1731809214703,0.17957874,89785.0,89784.0,0.13655918]
[1731809214945,0.07251619,89785.0,89784.0,0.02618118]
[1731809215189,0.07051619,89785.0,89784.0,0.13655918]
[1731809215432,0.05851619,89785.0,89784.0,0.13755918]
[1731809215669,0.07251619,89785.0,89784.0,0.13755918]
[1731809215911,0.05859596,89785.0,89784.0,0.13755918]
[1731809216150,0.04459596,89785.0,89784.0,0.13755918]
[1731809216398,0.05859596,89785.0,89784.0,0.13755918]
[1731809216637,0.02414205,89785.0,89784.0,0.13655918]
[1731809216887,0.01014205,89785.0,89784.0,0.13655918]
[1731809217129,0.02414205,89785.0,89784.0,0.13755918]
[1731809217338,0.001,89785.0,89784.0,0.13655918]
[1731809217551,0.0111504,89785.0,89784.0,0.19178655]
[1731809217784,0.16681495,89804.0,89784.0,0.19178655]
[1731809217785,0.16681495,89804.0,89786.0,0.005]
[1731809218016,0.16681495,89804.0,89803.0,0.111354]
[1731809218552,0.002,89812.0,89803.0,0.111354]
[1731809218553,0.002,89812.0,89803.0,0.222708]
[1731809218794,0.002,89812.0,89785.0,0.04169576]
[1731809218795,0.002,89805.0,89788.0,0.222746]
[1731809219026,0.002,89805.0,89785.0,0.03669576]
[1731809219263,0.111358,89801.0,89785.0,0.03669576]
[1731809219514,0.03249282,89800.0,89785.0,0.03669576]
[1731809219771,0.03249282,89800.0,89789.0,0.111371]
[1731809219772,0.10906255,89800.0,89789.0,0.111371]
[1731809220000,0.002,89787.0,89786.0,0.03695919]
[1731809220242,0.002,89787.0,89784.0,0.15358118]
[1731809220243,0.01624397,89787.0,89785.0,0.16681495]
[1731809220481,0.002,89785.0,89784.0,0.02518118]
[1731809220749,0.05073679,89785.0,89784.0,0.02518118]
[1731809220977,0.04873679,89785.0,89784.0,0.13655918]
[1731809221688,0.01624397,89785.0,89784.0,0.13655918]
[1731809222381,0.03655208,89785.0,89784.0,0.13655918]
[1731809222402,0.01624397,89785.0,89784.0,0.13655918]
[1731809222639,0.03655669,89785.0,89784.0,0.1122344]
[1731809222876,0.03755669,89785.0,89784.0,0.0028564]
[1731809223117,0.02131455,89785.0,89784.0,0.05192453]
[1731809223368,0.25700541,89785.0,89784.0,0.0008564]
[1731809223610,0.31751071,89785.0,89784.0,0.0018564]
[1731809223818,0.27300541,89785.0,89784.0,0.0008564]
[1731809224290,0.31951346,89785.0,89784.0,0.0018564]
[1731809224544,0.31951346,89785.0,89784.0,0.0008564]
[1731809224545,0.30551346,89785.0,89784.0,0.0008564]
[1731809224783,0.27300816,89785.0,89784.0,0.0018564]
[1731809225039,0.27300816,89785.0,89757.0,0.0756]
[1731809225040,0.38238516,89785.0,89757.0,0.0756]
[1731809225284,0.38238516,89785.0,89768.0,0.16681495]
[1731809225285,0.74544755,89778.0,89768.0,0.16681495]
[1731809225496,0.74544755,89778.0,89756.0,0.16681495]
[1731809225497,1.04644755,89778.0,89756.0,0.16681495]
[1731809225730,1.09926986,89778.0,89756.0,0.16681495]
[1731809225988,0.56626986,89778.0,89768.0,0.16681495]